bitfinex-derivatives/quotes_BTCF0:USTF0_20241213
["timestamp","ask_amount","ask_price","bid_price","bid_amount"]
[1734113639097,0.049196,101620.0,101610.0,0.23280766]
[1734113639298,0.64332683,101620.0,101610.0,0.05770579]
[1734113639992,0.64332683,101620.0,101610.0,0.049199]
[1734113640199,0.64332683,101620.0,101600.0,2.3032264]
[1734113640402,0.45343083,101610.0,101600.0,0.32350187]
[1734113640594,0.50263183,101610.0,101600.0,0.1484]
[1734113641799,0.3608,101610.0,101600.0,0.6484]
[1734113641999,0.3608,101610.0,101600.0,1.0578327]
[1734113642195,0.3608,101610.0,101600.0,0.46720187]
[1734113642391,0.50263183,101610.0,101600.0,0.32550187]
[1734113642599,0.50263183,101610.0,101600.0,0.101199]
[1734113643596,0.410001,101610.0,101600.0,0.101199]
[1734113643798,0.50263183,101610.0,101600.0,0.099199]
[1734113644991,0.50263183,101610.0,101600.0,0.099699]
[1734113646697,0.62002044,101610.0,101600.0,0.099699]
[1734113647300,0.62858227,101610.0,101600.0,0.099699]
[1734113648103,0.51119366,101610.0,101600.0,0.099699]
[1734113652396,1.0212131,101610.0,101600.0,0.099699]
[1734113652597,1.0212131,101610.0,101580.0,1.795213]
[1734113652598,0.049211,101590.0,101580.0,0.549213]
[1734113652797,0.86344183,101590.0,101580.0,0.049213]
[1734113653698,0.86344183,101590.0,101580.0,0.050213]
[1734113654098,0.86344183,101590.0,101580.0,0.052213]
[1734113654300,0.8757355,101590.0,101580.0,0.052213]
[1734113657095,0.86344183,101590.0,101580.0,0.052213]
[1734113657299,0.8757322,101590.0,101580.0,0.052213]
[1734113657697,0.78310137,101590.0,101580.0,0.052213]
[1734113658005,0.7216,101590.0,101580.0,0.59405883]
[1734113658307,0.53967998,101610.0,101590.0,0.049211]
[1734113658504,0.03284957,101600.0,101590.0,0.098422]
[1734113658806,0.01536011,101600.0,101590.0,0.69105283]
[1734113659001,0.410002,101610.0,101600.0,0.049206]
[1734113659002,0.42536211,101610.0,101600.0,0.049206]
[1734113659406,0.42536211,101610.0,101600.0,0.549206]
[1734113659708,0.42536211,101610.0,101600.0,1.249206]
[1734113660008,0.42536211,101610.0,101600.0,1.749206]
[1734113660698,0.410002,101610.0,101600.0,1.749206]
[1734113660902,0.42534608,101610.0,101600.0,1.749206]
[1734113662110,0.410002,101610.0,101600.0,1.749206]
[1734113662311,0.37614022,101610.0,101600.0,1.84183683]
[1734113662508,0.37614022,101610.0,101600.0,0.64183683]
[1734113662715,0.3608,101610.0,101600.0,0.549206]
[1734113663012,0.3608,101610.0,101600.0,0.72430787]
[1734113663201,0.3608,101610.0,101600.0,0.8169387]
[1734113663399,0.3608,101610.0,101600.0,0.72430787]
[1734113663603,0.3608,101610.0,101600.0,0.82594736]
[1734113665014,0.37614022,101610.0,101600.0,0.82594736]
[1734113666315,0.37614022,101610.0,101600.0,0.92024736]
[1734113668208,0.37614022,101610.0,101600.0,1.15437189]
[1734113668405,0.37614022,101610.0,101600.0,2.35437189]
[1734113670312,0.3608,101610.0,101600.0,2.35437189]
[1734113670611,0.37612819,101610.0,101600.0,2.35437189]
[1734113671809,0.3608,101610.0,101600.0,2.35437189]
[1734113672016,0.37612819,101610.0,101600.0,2.35437189]
[1734113672213,0.3608,101610.0,101600.0,2.35437189]
[1734113672516,0.3761281,101610.0,101600.0,2.12024736]
[1734113673718,0.3608,101610.0,101600.0,2.12024736]
[1734113673909,0.0153281,101610.0,101600.0,2.44700272]
[1734113674115,0.49351671,101620.0,101610.0,0.049201]
[1734113674421,0.3761281,101620.0,101610.0,0.81729064]
[1734113674610,0.3761281,101620.0,101610.0,0.86329064]
[1734113675412,0.3608,101620.0,101610.0,0.86329064]
[1734113675615,0.37612251,101620.0,101610.0,0.86329064]
[1734113676115,0.3608,101620.0,101610.0,0.86329064]
[1734113676307,0.3618,101620.0,101610.0,1.09741517]
[1734113676508,0.3618,101620.0,101610.0,0.86329064]
[1734113677120,0.3618,101620.0,101610.0,1.09741517]
[1734113677507,0.3618,101620.0,101610.0,0.86329064]
[1734113678115,0.3618,101620.0,101610.0,1.09741517]
[1734113678515,0.3618,101620.0,101610.0,0.86329064]
[1734113679015,0.001,101620.0,101610.0,1.91113149]
[1734113679215,0.37612251,101640.0,101610.0,2.3283106]
[1734113679414,0.37612251,101640.0,101630.0,0.14182283]
[1734113679812,0.37612251,101640.0,101630.0,0.69022283]
[1734113680217,0.37612251,101640.0,101630.0,0.19022283]
[1734113680419,0.37612251,101640.0,101630.0,0.69022283]
[1734113680613,0.37612251,101640.0,101630.0,0.19022283]
[1734113681014,0.37611122,101640.0,101630.0,0.69022283]
[1734113681320,0.3608,101640.0,101630.0,0.19022283]
[1734113681712,0.37611122,101640.0,101630.0,0.69022283]
[1734113681915,0.37611122,101640.0,101630.0,0.19022283]
[1734113682214,0.42529822,101640.0,101630.0,0.69022283]
[1734113682419,0.42529822,101640.0,101630.0,0.5]
[1734113682420,0.409987,101640.0,101630.0,0.5]
[1734113682621,0.049192,101630.0,101620.0,2.11573375]
[1734113682814,0.049192,101630.0,101620.0,2.11505375]
[1734113683015,0.0005,101630.0,101620.0,2.11505275]
[1734113683313,0.3613,101630.0,101620.0,2.11505275]
[1734113683716,0.410492,101630.0,101620.0,2.11505275]
[1734113684220,0.409992,101630.0,101620.0,2.11505275]
[1734113685722,0.409992,101630.0,101620.0,2.12390302]
[1734113686421,0.409992,101630.0,101620.0,0.82590302]
[1734113686813,0.42530322,101630.0,101620.0,2.02590302]
[1734113687219,0.42530656,101630.0,101620.0,2.02590302]
[1734113687616,0.42530656,101630.0,101620.0,1.43327219]
[1734113687922,0.42530656,101630.0,101620.0,0.05804327]
[1734113688126,0.47410656,101630.0,101620.0,0.05804327]
[1734113689210,0.59149517,101630.0,101620.0,0.23327219]
[1734113689415,0.57618061,101630.0,101620.0,0.049193]
[1734113689621,0.049196,101620.0,101610.0,2.01705775]
[1734113689920,0.46682387,101620.0,101610.0,1.92442692]
[1734113690114,0.51272387,101620.0,101610.0,0.22442692]
[1734113690517,0.51272387,101620.0,101600.0,0.78284056]
[1734113690518,0.63011248,101620.0,101600.0,0.95806948]
[1734113690724,0.44266108,101610.0,101600.0,2.1668067]
[1734113690910,0.42533058,101610.0,101600.0,2.1668067]
[1734113693621,0.410001,101610.0,101600.0,2.1668067]
[1734113698224,0.4253306,101610.0,101600.0,0.73316814]
[1734113699836,0.4253306,101610.0,101600.0,0.17522892]
[1734113700039,0.4253306,101610.0,101590.0,2.20625148]
[1734113700229,0.45800382,101600.0,101590.0,1.00625148]
[1734113700434,0.451806,101600.0,101590.0,0.45978428]
[1734113700634,0.5071356,101600.0,101590.0,0.22614572]
[1734113700840,0.491806,101600.0,101590.0,0.22614572]
[1734113701038,0.491806,101600.0,101590.0,0.001976]
[1734113701039,0.50713657,101600.0,101590.0,0.001976]
[1734113701236,0.70182544,101600.0,101590.0,0.001976]
[1734113701538,0.71408923,101600.0,101590.0,0.0005]
[1734113701740,0.86133653,101600.0,101590.0,0.0005]
[1734113702129,0.86133653,101600.0,101580.0,0.05794589]
[1734113702130,0.049211,101590.0,101580.0,0.23340761]
[1734113702335,0.049211,101590.0,101580.0,0.05794589]
[1734113702336,0.4253349,101590.0,101580.0,0.05794589]
[1734113702536,0.410011,101590.0,101580.0,0.05794589]
[1734113703241,0.4253344,101590.0,101580.0,0.05794589]
[1734113703441,0.4253344,101590.0,101580.0,0.55794589]
[1734113703846,0.4253344,101590.0,101580.0,0.05894589]
[1734113704034,0.4253344,101590.0,101580.0,0.55944589]
[1734113704537,0.4253344,101590.0,101580.0,0.05944589]
[1734113704737,0.4253344,101590.0,101580.0,0.050713]
[1734113704944,0.51796523,101590.0,101580.0,0.0015]
[1734113705249,0.55976523,101590.0,101580.0,0.0015]
[1734113705446,0.67715384,101590.0,101580.0,0.0015]
[1734113705740,0.55976523,101590.0,101580.0,0.050716]
[1734113706147,0.64790214,101590.0,101580.0,0.050716]
[1734113706451,0.51347131,101590.0,101580.0,0.64334683]
[1734113706739,0.3761234,101590.0,101580.0,0.14334683]
[1734113706943,0.3608,101590.0,101580.0,0.76144683]
[1734113707340,0.3608,101590.0,101580.0,1.46144683]
[1734113707545,0.3608,101590.0,101580.0,1.96144683]
[1734113707750,0.3608,101590.0,101580.0,2.13690855]
[1734113708745,0.3608,101600.0,101590.0,0.049211]
[1734113708948,0.00875126,101610.0,101600.0,0.049206]
[1734113709145,0.57891364,101620.0,101610.0,0.049201]
[1734113709345,0.85157673,101620.0,101610.0,0.049201]
[1734113709851,0.86039312,101620.0,101610.0,0.049201]
[1734113710353,0.8756839,101620.0,101610.0,0.049201]
[1734113710545,0.94853003,101620.0,101610.0,0.049201]
[1734113711041,0.94853003,101620.0,101610.0,0.549201]
[1734113711244,0.94853003,101620.0,101610.0,0.049201]
[1734113711442,0.94853003,101620.0,101610.0,0.549201]
[1734113713456,0.86039312,101620.0,101610.0,0.549201]
[1734113713652,0.77757127,101620.0,101610.0,0.549201]
[1734113713947,0.10393145,101630.0,101620.0,0.049197]
[1734113714146,0.01579454,101630.0,101620.0,0.14182783]
[1734113714342,0.0005,101630.0,101620.0,0.81728955]
[1734113714548,0.0005,101630.0,101620.0,0.31728955]
[1734113714856,0.0005,101630.0,101620.0,1.41172811]
[1734113715054,0.0005,101630.0,101620.0,2.61172811]
[1734113715353,0.0005,101630.0,101620.0,2.11172811]
[1734113715554,0.0005,101630.0,101620.0,2.61172811]
[1734113718962,0.0005,101630.0,101620.0,2.62049165]
[1734113720363,0.0005,101630.0,101620.0,2.65839165]
[1734113720564,0.0005,101630.0,101620.0,2.42475309]
[1734113721162,0.3608,101640.0,101620.0,2.42475309]
[1734113721366,0.3608,101640.0,101630.0,0.14182283]
[1734113721755,0.3608,101640.0,101630.0,0.64182283]
[1734113722163,0.3613,101640.0,101630.0,0.14182283]
[1734113722362,0.3613,101640.0,101630.0,0.64182283]
[1734113723259,0.3608,101640.0,101630.0,0.64182283]
[1734113724063,0.3613,101640.0,101630.0,0.64182283]
[1734113725060,0.3608,101640.0,101630.0,0.64182283]
[1734113726159,0.3613,101640.0,101630.0,0.64182283]
[1734113727162,0.50261883,101640.0,101620.0,0.55796054]
[1734113727462,0.46135826,101630.0,101620.0,0.05796054]
[1734113727660,0.451192,101630.0,101620.0,0.05796054]
[1734113728858,0.3608,101630.0,101620.0,0.65059137]
[1734113729067,0.3608,101630.0,101620.0,0.69179137]
[1734113729361,0.3608,101640.0,101630.0,0.049192]
[1734113729568,0.3608,101640.0,101630.0,0.14182283]
[1734113729768,0.3608,101640.0,101630.0,0.64182283]
[1734113730071,0.409988,101640.0,101630.0,0.049192]
[1734113730261,0.409988,101640.0,101630.0,0.5]
[1734113730262,0.45968,101640.0,101630.0,0.5]
[1734113730464,0.45968,101640.0,101620.0,0.14835154]
[1734113730465,0.049192,101630.0,101620.0,0.14835154]
[1734113730767,0.45019,101640.0,101620.0,0.74098237]
[1734113730971,0.01010644,101630.0,101620.0,0.09915654]
[1734113731269,0.3608,101640.0,101630.0,0.049192]
[1734113731567,0.3608,101640.0,101630.0,0.64182283]
[1734113731763,0.409988,101640.0,101630.0,0.549192]
[1734113731962,0.409988,101640.0,101630.0,1.249192]
[1734113732162,0.409988,101640.0,101630.0,1.749192]
[1734113733058,0.3608,101640.0,101630.0,1.749192]
[1734113734463,0.409988,101640.0,101630.0,0.549192]
[1734113734672,0.4636583,101640.0,101630.0,0.049192]
[1734113736267,0.55179521,101640.0,101630.0,0.049192]
[1734113736863,0.66918382,101640.0,101630.0,0.049192]
[1734113737061,0.76181465,101640.0,101630.0,0.049192]
[1734113737270,0.80565474,101640.0,101630.0,0.049192]
[1734113737466,0.72524146,101640.0,101630.0,0.049192]
[1734113738272,0.60785285,101640.0,101630.0,0.049192]
[1734113738581,0.6169816,101640.0,101630.0,0.049192]
[1734113739280,0.66416754,101640.0,101630.0,0.64182283]
[1734113739477,0.62056214,101640.0,101630.0,0.81728455]
[1734113739778,0.4644419,101640.0,101630.0,0.81728455]
[1734113740368,0.58216214,101640.0,101630.0,0.81728455]
[1734113740579,0.56683015,101640.0,101630.0,0.81728455]
[1734113740880,0.5821659,101640.0,101630.0,0.81728455]
[1734113741269,0.56683015,101640.0,101630.0,1.05092311]
[1734113742176,0.56683015,101640.0,101630.0,0.95829228]
[1734113742884,0.61609619,101640.0,101630.0,0.95829228]
[1734113743184,0.67495554,101640.0,101630.0,0.22465372]
[1734113743479,0.5695079,101640.0,101630.0,0.22465372]
[1734113743673,0.5203199,101640.0,101630.0,0.22465372]
[1734113743870,0.5203199,101640.0,101630.0,0.72465372]
[1734113744075,0.6382212,101640.0,101630.0,0.45829228]
[1734113744274,0.5203199,101640.0,101630.0,0.22465372]
[1734113744586,0.5203199,101640.0,101630.0,0.72465372]
[1734113744784,0.5695079,101640.0,101630.0,0.22465372]
[1734113745179,0.5695079,101640.0,101630.0,0.72465372]
[1734113745378,0.5695079,101640.0,101630.0,0.95829228]
[1734113745379,0.68740935,101640.0,101630.0,0.95829228]
[1734113745575,0.68740935,101640.0,101630.0,0.45829228]
[1734113745576,0.5695079,101640.0,101630.0,0.45829228]
[1734113745876,0.5695079,101640.0,101630.0,0.72465372]
[1734113746183,0.5695079,101640.0,101630.0,0.95829228]
[1734113746377,0.68740758,101640.0,101630.0,0.95829228]
[1734113746580,0.5695079,101640.0,101630.0,0.95829228]
[1734113746885,0.5080473,101640.0,101630.0,1.05092311]
[1734113747069,0.49405406,101640.0,101630.0,0.87546139]
[1734113747477,0.54324206,101640.0,101630.0,0.87546139]
[1734113747788,0.68740851,101640.0,101630.0,0.95851818]
[1734113748178,0.67513591,101640.0,101630.0,0.95851818]
[1734113748478,0.68740851,101640.0,101630.0,0.95851818]
[1734113748679,0.63822051,101640.0,101630.0,0.95851818]
[1734113750282,0.3884278,101640.0,101630.0,0.78283056]
[1734113750478,0.3761552,101640.0,101630.0,0.78283056]
[1734113750879,0.3761552,101640.0,101630.0,0.87546139]
[1734113751287,0.37615582,101640.0,101630.0,0.87546139]
[1734113751487,0.3608,101640.0,101630.0,0.87546139]
[1734113751685,0.5234037,101640.0,101630.0,0.87546139]
[1734113751885,0.47871828,101640.0,101630.0,0.87546139]
[1734113752075,0.62596558,101640.0,101630.0,0.91526139]
[1734113752486,0.47871828,101640.0,101630.0,0.91526139]
[1734113754188,0.62596558,101640.0,101630.0,0.91526139]
[1734113755287,0.62596558,101640.0,101630.0,0.82263056]
[1734113755688,0.62596558,101640.0,101630.0,0.99837727]
[1734113756087,0.67515358,101640.0,101630.0,0.45857727]
[1734113756286,0.68745832,101640.0,101630.0,0.45857727]
[1734113756480,0.56952042,101640.0,101630.0,0.45857727]
[1734113756689,0.5572353,101640.0,101630.0,0.45857727]
[1734113757193,0.56952042,101640.0,101630.0,0.45857727]
[1734113759193,0.56952332,101640.0,101630.0,0.45857727]
[1734113759590,0.5572353,101640.0,101630.0,0.28283056]
[1734113760098,0.5572353,101640.0,101630.0,0.78283056]
[1734113760288,0.56952332,101640.0,101630.0,0.95863905]
[1734113760489,0.56952332,101640.0,101630.0,0.28283056]
[1734113760798,0.56952332,101640.0,101630.0,0.78283056]
[1734113761389,0.56952332,101640.0,101630.0,0.95864013]
[1734113761588,0.56952332,101640.0,101630.0,0.78283056]
[1734113761589,0.5572353,101640.0,101630.0,0.78283056]
[1734113761882,0.5572353,101640.0,101630.0,0.95864018]
[1734113762082,0.56952332,101640.0,101630.0,0.95864018]
[1734113763290,0.52033532,101640.0,101630.0,0.95864018]
[1734113763795,0.52033532,101640.0,101630.0,1.05127101]
[1734113765098,0.63830412,101640.0,101630.0,0.87546139]
[1734113765297,0.63830375,101640.0,101630.0,0.87546139]
[1734113765601,0.63830375,101640.0,101630.0,1.16811705]
[1734113765890,0.47876843,101640.0,101630.0,1.21976599]
[1734113766096,0.56723699,101640.0,101630.0,1.26216599]
[1734113766485,0.56723699,101640.0,101630.0,2.46216599]
[1734113766790,0.2217939,101640.0,101630.0,2.82296599]
[1734113767095,0.10382547,101640.0,101630.0,2.52069713]
[1734113767293,0.10382547,101640.0,101630.0,2.88149713]
[1734113767492,0.03071036,101640.0,101630.0,2.88149713]
[1734113767696,0.01535345,101640.0,101630.0,2.88149713]
[1734113768496,0.26179044,101650.0,101640.0,0.049188]
[1734113768696,0.26179044,101650.0,101640.0,0.67762607]
[1734113768897,0.22179044,101650.0,101640.0,1.17762607]
[1734113769398,0.08846856,101650.0,101640.0,1.41182775]
[1734113769898,0.56723699,101650.0,101640.0,1.41182775]
[1734113770198,0.56723699,101650.0,101640.0,1.31919692]
[1734113770396,0.64723699,101650.0,101640.0,0.28338968]
[1734113770601,0.64723699,101650.0,101640.0,0.45903761]
[1734113770807,0.64723699,101650.0,101640.0,0.87602051]
[1734113771004,0.64723699,101650.0,101640.0,0.37602051]
[1734113771393,0.64723699,101650.0,101640.0,0.87602051]
[1734113771595,0.64723699,101650.0,101640.0,0.37602051]
[1734113771995,0.60593699,101650.0,101640.0,0.87602051]
[1734113772402,0.60593699,101650.0,101640.0,0.37602051]
[1734113772799,0.60593699,101650.0,101640.0,0.87602051]
[1734113773195,0.60593699,101650.0,101640.0,0.37602051]
[1734113773402,0.60593699,101650.0,101640.0,0.87602051]
[1734113773793,0.60593699,101650.0,101640.0,0.88494486]
[1734113773999,0.62127684,101650.0,101640.0,0.88494486]
[1734113776112,0.60593699,101650.0,101640.0,0.88494486]
[1734113776306,0.62127568,101650.0,101640.0,0.88494486]
[1734113776707,0.60593699,101650.0,101640.0,0.88494486]
[1734113776904,0.48796856,101650.0,101640.0,0.88494486]
[1734113778324,0.48796856,101650.0,101640.0,1.06058393]
[1734113778703,0.48796856,101650.0,101640.0,0.88494486]
[1734113778905,0.48796856,101650.0,101640.0,1.06059074]
[1734113779104,0.48796856,101650.0,101640.0,1.0605848]
[1734113779303,0.60593699,101650.0,101640.0,0.29231403]
[1734113779598,0.60593699,101650.0,101640.0,0.46795633]
[1734113779803,0.60593699,101650.0,101640.0,0.96795633]
[1734113780010,0.60593699,101650.0,101640.0,0.46795633]
[1734113780204,0.60593699,101650.0,101640.0,0.56058716]
[1734113780408,0.60593699,101650.0,101640.0,1.06058716]
[1734113780615,0.10380608,101650.0,101640.0,0.97757569]
[1734113781015,0.10380608,101650.0,101640.0,1.27039543]
[1734113781208,0.10380608,101650.0,101640.0,0.92524486]
[1734113781410,0.08846856,101650.0,101640.0,0.92524486]
[1734113781713,0.08846856,101650.0,101640.0,1.31470677]
[1734113781904,0.08846856,101650.0,101640.0,1.3147469]
[1734113782112,0.01533752,101650.0,101640.0,1.3147469]
[1734113782613,0.01533752,101650.0,101640.0,1.6352469]
[1734113782812,0.51378408,101660.0,101650.0,0.049183]
[1734113783015,0.70904582,101660.0,101650.0,0.40993237]
[1734113783315,0.049183,101650.0,101640.0,0.2248723]
[1734113783513,0.6258232,101650.0,101640.0,0.2248723]
[1734113783815,0.6101589,101650.0,101640.0,0.2248723]
[1734113785017,0.62242671,101650.0,101640.0,0.2248723]
[1734113785318,1.16230484,101650.0,101640.0,0.1756853]
[1734113785615,0.049192,101630.0,101620.0,0.22651231]
[1734113785811,1.03585089,101630.0,101620.0,0.22651231]
[1734113786013,0.91804694,101630.0,101620.0,0.05067086]
[1734113786212,0.93031789,101630.0,101620.0,0.05117086]
[1734113786716,0.93031789,101630.0,101620.0,0.049695]
[1734113787213,0.88112589,101630.0,101620.0,0.049195]
[1734113787420,0.98658972,101630.0,101620.0,0.549195]
[1734113787716,0.83933478,101630.0,101620.0,0.549195]
[1734113787914,0.92762603,101630.0,101620.0,0.549195]
[1734113788114,0.97681903,101630.0,101620.0,0.549195]
[1734113788311,0.98115861,101630.0,101620.0,0.049695]
[1734113788518,0.99342956,101630.0,101620.0,0.049695]
[1734113788814,1.04805367,101630.0,101620.0,0.049695]
[1734113789211,1.04805367,101630.0,101620.0,0.049195]
[1734113790012,1.04805367,101630.0,101610.0,0.55826895]
[1734113790013,1.4406845,101630.0,101610.0,0.5]
[1734113790215,0.86399657,101620.0,101610.0,0.0492]
[1734113790414,0.84240158,101620.0,101610.0,0.0492]
[1734113790718,0.049201,101610.0,101600.0,1.249204]
[1734113790923,0.6159056,101610.0,101600.0,1.249204]
[1734113791117,0.70853643,101610.0,101600.0,0.049204]
[1734113791718,0.70848642,101610.0,101600.0,0.049204]
[1734113792716,0.70848642,101610.0,101600.0,0.050204]
[1734113793310,0.59082665,101610.0,101600.0,0.050204]
[1734113794218,0.60611642,101610.0,101600.0,0.050204]
[1734113794625,0.59082665,101610.0,101600.0,0.050204]
[1734113795021,0.59990068,101610.0,101600.0,0.050204]
[1734113795214,0.61518487,101610.0,101600.0,0.050704]
[1734113795421,0.51170586,101610.0,101600.0,0.0015]
[1734113795922,0.52699008,101610.0,101600.0,0.0015]
[1734113796128,0.59990068,101610.0,101600.0,0.0015]
[1734113797018,0.59990068,101610.0,101600.0,0.050706]
[1734113797526,0.61517651,101610.0,101600.0,0.050706]
[1734113798020,0.52254568,101610.0,101600.0,0.050706]
[1734113798219,0.43435086,101610.0,101600.0,0.050706]
[1734113799325,0.43434724,101610.0,101600.0,0.050706]
[1734113799626,0.52697807,101610.0,101600.0,0.050706]
[1734113800027,0.52697807,101610.0,101600.0,0.0015]
[1734113800028,0.6196089,101610.0,101600.0,0.0015]
[1734113800421,0.52697807,101610.0,101600.0,0.0015]
[1734113800832,0.61517289,101610.0,101600.0,0.0015]
[1734113801425,0.52697807,101610.0,101600.0,0.0015]
[1734113801620,0.52697807,101610.0,101600.0,0.0005]
[1734113802531,0.51170586,101610.0,101600.0,0.0005]
[1734113802727,0.52697311,101610.0,101600.0,0.0005]
[1734113802928,0.51170586,101610.0,101600.0,0.0005]
[1734113803931,0.41907503,101610.0,101600.0,0.0005]
[1734113804130,0.41907503,101610.0,101600.0,0.049706]
[1734113805129,0.43434234,101610.0,101600.0,0.049706]
[1734113805330,0.43434394,101610.0,101600.0,0.049706]
[1734113805630,0.41907503,101610.0,101600.0,0.049706]
[1734113805833,0.43434376,101610.0,101600.0,0.049706]
[1734113806334,0.61516941,101610.0,101600.0,0.049706]
[1734113806927,0.52697459,101610.0,101600.0,0.049706]
[1734113807225,0.51170586,101610.0,101600.0,0.0005]
[1734113807434,0.59990068,101610.0,101600.0,0.0005]
[1734113808623,1.11019128,101610.0,101600.0,0.0005]
[1734113808926,0.049221,101570.0,101560.0,0.55070071]
[1734113809130,0.50265183,101570.0,101560.0,0.00147671]
[1734113809825,0.54545183,101570.0,101560.0,0.00147671]
[1734113810227,0.84645183,101570.0,101560.0,0.00147671]
[1734113810829,0.54645183,101570.0,101560.0,0.00147671]
[1734113811037,0.049231,101550.0,101540.0,0.05852585]
[1734113811331,0.78610791,101550.0,101540.0,0.55852585]
[1734113811733,0.78610791,101550.0,101540.0,0.05852585]
[1734113811934,0.78610614,101550.0,101540.0,0.05852585]
[1734113812136,0.78610608,101550.0,101540.0,0.05852585]
[1734113812832,0.78610608,101550.0,101540.0,0.55852585]
[1734113813035,0.78710608,101550.0,101540.0,0.05852585]
[1734113813344,0.049236,101540.0,101530.0,1.83231552]
[1734113813638,0.42531218,101540.0,101530.0,1.83231552]
[1734113813839,0.42531218,101540.0,101530.0,1.84169791]
[1734113814137,0.51794301,101540.0,101530.0,1.83231552]
[1734113814346,0.50266683,101540.0,101530.0,1.283]
[1734113814634,0.50366683,101540.0,101530.0,1.2]
[1734113814837,0.50466683,101540.0,101530.0,1.202]
[1734113815043,0.50466683,101540.0,101530.0,0.051241]
[1734113815337,0.51688689,101540.0,101530.0,0.051241]
[1734113815927,0.51688689,101540.0,101530.0,0.551241]
[1734113815928,0.37502006,101540.0,101530.0,0.551241]
[1734113816136,0.3628,101540.0,101530.0,0.551241]
[1734113816330,0.3628,101540.0,101530.0,0.051241]
[1734113816531,0.3628,101540.0,101530.0,0.551241]
[1734113817135,0.002,101540.0,101530.0,0.912041]
[1734113817732,0.01727053,101540.0,101530.0,0.912041]
[1734113818237,0.002,101540.0,101530.0,1.00467183]
[1734113818539,0.002,101540.0,101530.0,0.912041]
[1734113818935,0.01727136,101540.0,101530.0,0.912041]
[1734113820141,0.51993819,101540.0,101530.0,0.551241]
[1734113820443,0.50466683,101540.0,101530.0,0.551241]
[1734113821034,0.51688719,101540.0,101530.0,0.502]
[1734113822238,0.51688719,101540.0,101530.0,0.55124]
[1734113822436,0.51688719,101540.0,101530.0,0.502]
[1734113822833,0.54596683,101540.0,101530.0,0.002]
[1734113823040,0.049245,101520.0,101510.0,0.5399]
[1734113823243,0.04925,101510.0,101500.0,1.90113132]
[1734113823437,0.42531825,101510.0,101500.0,1.40113132]
[1734113823747,0.42531825,101510.0,101500.0,1.90113132]
[1734113824238,0.51794908,101510.0,101500.0,0.65123068]
[1734113824637,0.51794908,101510.0,101500.0,0.149753]
[1734113825139,0.50268083,101510.0,101500.0,0.1005]
[1734113825333,0.41005,101510.0,101500.0,0.6005]
[1734113825534,0.01220202,101510.0,101500.0,0.6005]
[1734113825743,0.01320202,101510.0,101500.0,0.149755]
[1734113825942,0.01320202,101510.0,101500.0,1.093255]
[1734113826247,0.01320202,101510.0,101500.0,0.594255]
[1734113826443,0.001,101510.0,101500.0,1.135055]
[1734113826641,0.001,101510.0,101500.0,1.22768583]
[1734113827044,0.01624795,101510.0,101500.0,1.22668583]
[1734113827445,0.03149576,101510.0,101500.0,1.22668583]
[1734113827741,0.01624795,101510.0,101500.0,1.22668583]
[1734113827941,0.06549795,101510.0,101500.0,1.134055]
[1734113828133,0.06549795,101510.0,101500.0,0.773255]
[1734113828134,0.44154576,101510.0,101500.0,0.773255]
[1734113828334,0.53112717,101510.0,101500.0,0.732455]
[1734113828546,0.53112717,101510.0,101500.0,0.6832]
[1734113829145,0.53112717,101510.0,101500.0,0.6005]
[1734113829351,0.53112717,101510.0,101500.0,0.1005]
[1734113829548,0.42629795,101510.0,101500.0,0.649755]
[1734113829849,0.43849416,101510.0,101500.0,0.149755]
[1734113830355,0.43849391,101510.0,101500.0,0.649755]
[1734113830542,0.43849391,101510.0,101500.0,0.149755]
[1734113830857,0.43849391,101510.0,101500.0,0.649755]
[1734113830858,0.02844391,101510.0,101500.0,0.649755]
[1734113831046,0.02844391,101510.0,101500.0,1.349755]
[1734113831247,0.38924391,101510.0,101500.0,1.849755]
[1734113831438,0.02844391,101510.0,101500.0,1.849755]
[1734113831837,0.38924391,101510.0,101500.0,1.849755]
[1734113832541,0.53112474,101510.0,101500.0,1.849755]
[1734113832846,0.43849391,101510.0,101500.0,1.849755]
[1734113833053,0.42629795,101510.0,101500.0,1.849755]
[1734113833545,0.50368083,101510.0,101500.0,1.349755]
[1734113833745,0.41105,101510.0,101500.0,1.349755]
[1734113833942,0.50368083,101510.0,101500.0,1.349755]
[1734113834460,0.50368083,101510.0,101500.0,0.149755]
[1734113834640,0.50368083,101510.0,101500.0,0.649755]
[1734113834641,0.41105,101510.0,101500.0,0.649755]
[1734113834843,0.56618631,101530.0,101500.0,2.10318583]
[1734113835039,0.410036,101540.0,101520.0,0.45343083]
[1734113835354,0.02243782,101530.0,101520.0,0.910041]
[1734113835653,0.02243782,101530.0,101520.0,0.410041]
[1734113835654,0.04924,101530.0,101520.0,0.410041]
[1734113836338,0.04924,101530.0,101520.0,0.910041]
[1734113836548,0.05024,101530.0,101520.0,0.410041]
[1734113836949,0.05024,101530.0,101520.0,0.910041]
[1734113837346,0.05024,101530.0,101520.0,0.410041]
[1734113837554,0.05024,101530.0,101520.0,0.910041]
[1734113837746,0.05024,101530.0,101520.0,0.549241]
[1734113837944,0.05024,101530.0,101520.0,0.049241]
[1734113838147,0.04924,101530.0,101520.0,0.049241]
[1734113838344,0.04924,101530.0,101520.0,0.549241]
[1734113838647,0.04924,101530.0,101520.0,0.049241]
[1734113839046,0.04924,101530.0,101520.0,0.549241]
[1734113839248,0.4980627,101530.0,101520.0,0.049241]
[1734113839650,0.4980627,101530.0,101520.0,0.549241]
[1734113841651,0.5399627,101530.0,101520.0,0.549241]
[1734113842653,0.5786627,101530.0,101520.0,0.549241]
[1734113843351,0.69602631,101530.0,101520.0,0.049241]
[1734113844455,0.71289576,101530.0,101520.0,0.049241]
[1734113844644,0.049245,101520.0,101510.0,1.09504707]
[1734113844850,0.049245,101520.0,101510.0,0.3608]
[1734113845360,0.049245,101520.0,101510.0,0.41005]
[1734113845557,0.410045,101520.0,101510.0,0.04925]
[1734113845754,0.49935912,101520.0,101510.0,0.04925]
[1734113846153,0.61672273,101520.0,101510.0,0.04925]
[1734113847654,0.61672273,101520.0,101510.0,0.54925]
[1734113847854,0.61672273,101520.0,101510.0,0.04925]
[1734113848252,0.61672273,101520.0,101510.0,0.54925]
[1734113848453,0.61672273,101520.0,101510.0,0.04925]
[1734113848750,0.61672273,101520.0,101510.0,0.54925]
[1734113849254,0.61672273,101520.0,101510.0,0.04925]
[1734113850159,0.540686,101520.0,101510.0,0.04925]
[1734113851048,0.61681353,101520.0,101510.0,0.04925]
[1734113852257,0.411045,101520.0,101510.0,0.04925]
[1734113852764,0.50367583,101520.0,101510.0,0.04925]